[Event "Queen Rapid Challenge 2024"]
[Site "Bucharest"]
[Date "2024.03.10"]
[Round "5.3"]
[White "Maria, Lia-Alexandra"]
[Black "Sgircea, Silvia-Raluca"]
[Result "1-0"]
[ECO "B38"]
[WhiteElo "1996"]
[BlackElo "2224"]
[Annotator "RC"]
[PlyCount "75"]
[EventDate "2024.03.09"]
[EventType "rapid"]
[EventCountry "ROU"]
[SourceTitle "playchess.com"]
[Source "ChessBase"]
[SourceQuality "1"]
[TimeControl "900+10"]

1. e4 {[%emt 0:00:12]} c5 {[%emt 0:00:11]} 2. Nf3 {[%emt 0:00:07]} Nc6 {[%emt 0:00:07]} 3. d4 {[%emt 0:00:12]} cxd4 {[%emt 0:00:07]} 4. Nxd4 {[%emt 0:00:07]} g6 {[%emt 0:00:06]} 5. c4 {[%emt 0:00:38]} Bg7 {[%emt 0:00:07]} 6. Be3 {[%emt 0:00:08]} Nf6 {[%emt 0:00:08]} 7. Nc3 {[%emt 0:00:08]} d6 {[%emt 0:00:07]} 8. f3 {[%emt 0:00:24]} O-O {[%emt 0:00:08]} 9. Be2 {[%emt 0:00:09]} Bd7 {[%emt 0:00:09]} 10. O-O {[%emt 0:00:11]} Nxd4 {[%emt 0:00:08]} 11. Bxd4 {[%emt 0:00:25]} a5 {[%emt 0:00:08]} 12. Rc1 {[%emt 0:01:35]} Bc6 {[%emt 0:00:37]} 13. Nd5 {[%emt 0:00:19]} Nd7 {[%emt 0:00:28]} 14. Bxg7 {[%emt 0:00:46]} Kxg7 {[%emt 0:00:07]} 15. Qd4+ {[%emt 0:00:13]} e5 {[%emt 0:00:13]} 16. Qd2 {[%emt 0:00:26]} Bxd5 {[%emt 0:00:08]} 17. cxd5 {[%emt 0:03:27]} Qb6+ {[%emt 0:01:20]} 18. Kh1 {[%emt 0:00:07]} Nc5 {[%emt 0:00:07]} 19. Rc4 {[%emt 0:02:42]} a4 {[%emt 0:02:26]} 20. f4 {[%emt 0:01:04]} f6 {[%emt 0:00:07]} 21. f5 {[%emt 0:00:30]} Qa5 {[%emt 0:00:17]} 22. Qc2 {[%emt 0:02:32]} b5 {[%emt 0:01:42]} 23. Rc3 {[%emt 0:00:07]} Qb4 {[%emt 0:00:07]} 24. a3 {[%emt 0:00:25]} Qa5 {[%emt 0:01:24]} 25. Rh3 {[%emt 0:00:14]} b4 {[%emt 0:00:51]} 26. Qd2 {[%emt 0:00:33]} g5 {[%emt 0:00:07]} 27. axb4 {[%emt 0:00:50]} Nxe4 {[%emt 0:00:07]} 28. Qc2 {[%emt 0:00:08]} Qxb4 {[%emt 0:00:08]} 29. Qc7+ {[%emt 0:00:07]} Rf7 {[%emt 0:00:27]} 30. Rxh7+ {[%emt 0:00:12]} Kxh7 {[%emt 0:00:07]} 31. Qxf7+ {[%emt 0:00:08]} Kh8 {[%emt 0:00:12]} 32. Bd3 {[%emt 0:01:13]} Rg8 {[%emt 0:06:10]} 33. Bxe4 {[%emt 0:00:09]} Qxe4 {[%emt 0:00:06]} 34. Qh5+ {[%emt 0:00:11]} Kg7 {[%emt 0:00:06]} 35. Qg6+ {[%emt 0:00:07]} Kf8 {[%emt 0:00:06]} 36. Qxf6+ {[%emt 0:00:06]} Ke8 {[%emt 0:00:06]} 37. Qe6+ {[%emt 0:00:07]} Kf8 {[%emt 0:00:07]} 38. f6 {[%emt 0:00:14]} 1-0

[Event "Queen Rapid Challenge 2024"]
[Site "Bucharest"]
[Date "2024.03.10"]
[Round "5.4"]
[White "Cosman, Andreea-Marioara"]
[Black "Pirvulescu, Ekaterina"]
[Result "1/2-1/2"]
[ECO "D27"]
[WhiteElo "2115"]
[BlackElo "2091"]
[Annotator "RC"]
[PlyCount "85"]
[EventDate "2024.03.09"]
[EventType "rapid"]
[EventCountry "ROU"]
[SourceTitle "playchess.com"]
[Source "ChessBase"]
[SourceQuality "1"]
[TimeControl "900+10"]

1. d4 {[%emt 0:00:13]} d5 {[%emt 0:00:11]} 2. c4 {[%emt 0:00:16]} dxc4 {[%emt 0:00:08]} 3. Nf3 {[%emt 0:00:07]} Nf6 {[%emt 0:00:07]} 4. e3 {[%emt 0:00:07]} e6 {[%emt 0:00:07]} 5. Bxc4 {[%emt 0:00:07]} a6 {[%emt 0:00:06]} 6. a4 {[%emt 0:00:06]} c5 {[%emt 0:00:11]} 7. O-O {[%emt 0:00:13]} cxd4 {[%emt 0:00:08]} 8. Nxd4 {[%emt 0:00:23]} Be7 {[%emt 0:01:05]} 9. Nc3 {[%emt 0:00:29]} O-O {[%emt 0:00:10]} 10. b3 {[%emt 0:00:49]} Qc7 {[%emt 0:01:20]} 11. Bb2 {[%emt 0:02:20]} Bd7 {[%emt 0:01:59]} 12. Rc1 {[%emt 0:02:04]} Nc6 {[%emt 0:00:19]} 13. Be2 {[%emt 0:00:34]} Rfd8 {[%emt 0:00:28]} 14. Nxc6 {[%emt 0:03:04]} Bxc6 {[%emt 0:00:22]} 15. Qc2 {[%emt 0:00:07]} Qa5 {[%emt 0:00:35]} 16. Rfd1 {[%emt 0:00:26]} Qg5 {[%emt 0:00:28]} 17. e4 {[%emt 0:01:02]} Rac8 {[%emt 0:00:58]} 18. Bf3 {[%emt 0:01:01]} Ng4 {[%emt 0:02:29]} 19. Ne2 {[%emt 0:01:15]} Ne5 {[%emt 0:02:43]} 20. Bxe5 {[%emt 0:00:35]} Qxe5 {[%emt 0:00:08]} 21. Qc3 {[%emt 0:01:24]} Bf6 {[%emt 0:00:40]} 22. Qxe5 {[%emt 0:00:33]} Bxe5 {[%emt 0:00:06]} 23. Kf1 {[%emt 0:00:36]} Kf8 {[%emt 0:00:13]} 24. Ng3 {[%emt 0:00:22]} Bf4 {[%emt 0:00:39]} 25. Rxd8+ {[%emt 0:00:25]} Rxd8 {[%emt 0:00:08]} 26. Rc3 {[%emt 0:00:32]} Ke7 {[%emt 0:00:37]} 27. h4 {[%emt 0:00:14]} Rd2 {[%emt 0:01:08]} 28. Be2 {[%emt 0:00:14]} Bxg3 {[%emt 0:01:26]} 29. Rxg3 {[%emt 0:00:09]} Bxe4 {[%emt 0:00:22]} 30. Rxg7 {[%emt 0:00:07]} Rb2 {[%emt 0:00:21]} 31. f3 {[%emt 0:00:17]} Bc2 {[%emt 0:00:17]} 32. Bc4 {[%emt 0:00:11]} Bxb3 {[%emt 0:00:08]} 33. Bxb3 {[%emt 0:00:06]} Rxb3 34. Rxh7 {[%emt 0:00:07]} Rb4 {[%emt 0:00:11]} 35. h5 {[%emt 0:00:11]} Rxa4 {[%emt 0:00:19]} 36. g4 {[%emt 0:00:12]} Kf6 {[%emt 0:00:09]} 37. Rh8 {[%emt 0:00:12]} Kg7 {[%emt 0:00:08]} 38. Rb8 {[%emt 0:00:09]} b5 {[%emt 0:00:06]} 39. Rb7 {[%emt 0:00:12]} Ra2 {[%emt 0:00:10]} 40. g5 {[%emt 0:00:07]} Kg8 {[%emt 0:00:10]} 41. Rb8+ {[%emt 0:00:07]} Kg7 {[%emt 0:00:06]} 42. Rb7 {[%emt 0:00:07]} Kg8 {[%emt 0:00:12]} 43. Rb8+ {[%emt 0:00:06]} 1/2-1/2

[Event "Queen Rapid Challenge 2024"]
[Site "Bucharest"]
[Date "2024.03.10"]
[Round "5.5"]
[White "Stanciu, Andreea-Briana"]
[Black "Iordache, Alexia-Andreea"]
[Result "0-1"]
[ECO "A03"]
[WhiteElo "1976"]
[BlackElo "1866"]
[Annotator "RC"]
[PlyCount "93"]
[EventDate "2024.03.09"]
[EventType "rapid"]
[EventCountry "ROU"]
[SourceTitle "playchess.com"]
[Source "ChessBase"]
[SourceQuality "1"]
[TimeControl "900+10"]

1. f4 {[%emt 0:00:12]} d5 {[%emt 0:00:13]} 2. b3 {[%emt 0:00:06]} Nf6 {[%emt 0:00:15]} 3. Bb2 {[%emt 0:00:07]} e6 {[%emt 0:00:11]} 4. e3 {[%emt 0:00:09]} c5 {[%emt 0:00:15]} 5. Nf3 {[%emt 0:00:06]} Nc6 {[%emt 0:00:06]} 6. Bb5 {[%emt 0:00:06]} Bd7 {[%emt 0:00:21]} 7. O-O {[%emt 0:00:11]} a6 {[%emt 0:00:16]} 8. Bxc6 {[%emt 0:00:07]} Bxc6 {[%emt 0:00:06]} 9. Ne5 {[%emt 0:00:15]} d4 {[%emt 0:00:40]} 10. Nxc6 {[%emt 0:00:14]} bxc6 {[%emt 0:00:07]} 11. Qe2 {[%emt 0:00:53]} Qd5 {[%emt 0:01:25]} 12. Na3 {[%emt 0:00:43]} Qe4 {[%emt 0:03:00]} 13. Rae1 {[%emt 0:04:04]} Be7 {[%emt 0:04:14]} 14. exd4 {[%emt 0:01:22]} Qxe2 {[%emt 0:00:18]} 15. Rxe2 {[%emt 0:00:06]} cxd4 {[%emt 0:00:07]} 16. f5 {[%emt 0:00:14]} Bc5 {[%emt 0:01:34]} 17. Kh1 {[%emt 0:01:12]} Kd7 {[%emt 0:01:02]} 18. Nc4 {[%emt 0:01:16]} Rhf8 {[%emt 0:01:07]} 19. Ne5+ {[%emt 0:02:02]} Kc7 {[%emt 0:00:13]} 20. Nd3 {[%emt 0:00:12]} Bb6 {[%emt 0:01:51]} 21. fxe6 {[%emt 0:00:21]} fxe6 {[%emt 0:00:15]} 22. Rxe6 {[%emt 0:00:07]} Nd5 {[%emt 0:00:24]} 23. Ree1 {[%emt 0:00:24]} Rae8 {[%emt 0:00:21]} 24. Rxf8 {[%emt 0:00:42]} Rxf8 {[%emt 0:00:09]} 25. Ba3 {[%emt 0:00:11]} Rf5 {[%emt 0:00:25]} 26. g3 {[%emt 0:01:03]} Kb7 {[%emt 0:00:22]} 27. Kg2 {[%emt 0:00:13]} g6 {[%emt 0:00:13]} 28. Re4 {[%emt 0:00:30]} a5 {[%emt 0:00:10]} 29. Bb2 {[%emt 0:00:49]} c5 {[%emt 0:00:09]} 30. a4 {[%emt 0:00:17]} Rf6 {[%emt 0:00:12]} 31. Re5 {[%emt 0:00:24]} Kc6 {[%emt 0:00:06]} 32. Re8 {[%emt 0:00:43]} Nc7 {[%emt 0:00:10]} 33. Rh8 {[%emt 0:00:33]} h5 {[%emt 0:00:06]} 34. Ne5+ {[%emt 0:00:30]} Kb7 {[%emt 0:00:16]} 35. Rg8 {[%emt 0:00:25]} Re6 {[%emt 0:00:06]} 36. Nxg6 {[%emt 0:00:07]} Re2+ {[%emt 0:00:05]} 37. Kh3 {[%emt 0:00:17]} Rxd2 {[%emt 0:00:06]} 38. Bc1 {[%emt 0:00:09]} Rxc2 {[%emt 0:00:07]} 39. Bf4 {[%emt 0:00:07]} d3 {[%emt 0:00:09]} 40. Ne5 {[%emt 0:00:08]} d2 {[%emt 0:00:18]} 41. Rd8 {[%emt 0:00:09]} Ne6 {[%emt 0:00:22]} 42. Rd7+ {[%emt 0:00:06]} Kc8 {[%emt 0:00:10]} 43. Bxd2 {[%emt 0:00:07]} Bc7 {[%emt 0:00:08]} 44. Re7 {[%emt 0:00:23]} Rxd2 {[%emt 0:00:10]} 45. Rxe6 {[%emt 0:00:07]} Re2 {[%emt 0:00:06]} 46. Re8+ {[%emt 0:00:15]} Kb7 {[%emt 0:00:06]} 47. Rh8 {[%emt 0:00:16]} 0-1

[Event "Queen Rapid Challenge 2024"]
[Site "Bucharest"]
[Date "2024.03.10"]
[Round "5.6"]
[White "Ciolacu, Alessia-Mihaela"]
[Black "Badica, Ariana"]
[Result "1-0"]
[ECO "A14"]
[WhiteElo "2175"]
[BlackElo "1708"]
[Annotator "RC"]
[PlyCount "67"]
[EventDate "2024.03.09"]
[EventType "rapid"]
[EventCountry "ROU"]
[SourceTitle "playchess.com"]
[Source "ChessBase"]
[SourceQuality "1"]
[TimeControl "900+10"]

1. Nf3 {[%emt 0:00:14]} d5 {[%emt 0:00:13]} 2. b3 {[%emt 0:00:11]} Nf6 {[%emt 0:00:13]} 3. Bb2 {[%emt 0:00:08]} e6 {[%emt 0:00:12]} 4. c4 {[%emt 0:00:14]} Be7 {[%emt 0:03:07]} 5. g3 {[%emt 0:00:21]} O-O {[%emt 0:00:09]} 6. Bg2 {[%emt 0:00:07]} c5 {[%emt 0:00:14]} 7. O-O {[%emt 0:00:32]} Nc6 {[%emt 0:03:24]} 8. e3 {[%emt 0:01:10]} Qc7 {[%emt 0:00:53]} 9. Nc3 {[%emt 0:00:28]} Rd8 {[%emt 0:00:27]} 10. cxd5 {[%emt 0:02:07]} Nxd5 {[%emt 0:01:06]} 11. Nxd5 {[%emt 0:00:46]} exd5 {[%emt 0:00:09]} 12. d4 {[%emt 0:00:44]} Bf6 {[%emt 0:00:17]} 13. Rc1 {[%emt 0:00:14]} cxd4 {[%emt 0:00:45]} 14. Nxd4 {[%emt 0:01:05]} Qd6 {[%emt 0:01:14]} 15. Nb5 {[%emt 0:00:54]} Qe7 {[%emt 0:00:47]} 16. Bxf6 {[%emt 0:00:26]} Qxf6 {[%emt 0:00:13]} 17. Nc7 {[%emt 0:00:09]} Rb8 {[%emt 0:00:18]} 18. Nxd5 {[%emt 0:00:09]} Qe5 {[%emt 0:01:21]} 19. f4 {[%emt 0:04:05]} Qe6 {[%emt 0:01:26]} 20. Qf3 {[%emt 0:00:34]} Ne7 {[%emt 0:01:12]} 21. Nc3 {[%emt 0:01:51]} b6 {[%emt 0:00:18]} 22. Rfd1 {[%emt 0:00:15]} Rxd1+ {[%emt 0:00:39]} 23. Rxd1 {[%emt 0:00:07]} g6 {[%emt 0:00:12]} 24. Rd8+ {[%emt 0:00:25]} Kg7 {[%emt 0:00:07]} 25. Qe4 {[%emt 0:00:54]} Nf5 {[%emt 0:00:17]} 26. Qxe6 {[%emt 0:00:19]} fxe6 {[%emt 0:00:08]} 27. Kf2 {[%emt 0:00:12]} Kf7 {[%emt 0:00:11]} 28. Nb5 {[%emt 0:00:13]} Ke7 {[%emt 0:00:11]} 29. Rh8 {[%emt 0:00:09]} h5 {[%emt 0:00:08]} 30. Nxa7 {[%emt 0:00:11]} Kd7 {[%emt 0:00:08]} 31. Nc6 {[%emt 0:00:15]} Rb7 {[%emt 0:00:15]} 32. Ne5+ {[%emt 0:00:10]} Kd6 {[%emt 0:00:16]} 33. Bxb7 {[%emt 0:00:17]} Bxb7 {[%emt 0:00:00]} 34. Nxg6 {[%emt 0:00:20]} 1-0

[Event "Queen Rapid Challenge 2024"]
[Site "Bucharest"]
[Date "2024.03.10"]
[Round "5.7"]
[White "Hoanca, Alexia-Ioana"]
[Black "Aldea, Maria-Antonia"]
[Result "1-0"]
[ECO "B80"]
[WhiteElo "1849"]
[BlackElo "1855"]
[Annotator "NA RC"]
[PlyCount "69"]
[EventDate "2024.03.09"]
[EventType "rapid"]
[EventCountry "ROU"]
[SourceTitle "playchess.com"]
[Source "ChessBase"]
[SourceQuality "1"]
[TimeControl "900+10"]

1. e4 {[%emt 0:00:11]} c5 {[%emt 0:00:11]} 2. Nf3 {[%emt 0:00:07]} d6 {[%emt 0:00:06]} 3. d4 {[%emt 0:00:06]} cxd4 {[%emt 0:00:07]} 4. Nxd4 {[%emt 0:00:07]} Nf6 {[%emt 0:00:06]} 5. Nc3 {[%emt 0:00:06]} a6 {[%emt 0:00:08]} 6. Be3 {[%emt 0:00:07]} e6 {[%emt 0:00:11]} 7. a3 {[%emt 0:00:06]} Nbd7 {[%emt 0:00:10]} 8. g4 {[%emt 0:00:48]} h6 {[%emt 0:01:27]} 9. h4 {[%emt 0:01:08]} Qc7 {[%emt 0:02:06]} 10. Bg2 {[%emt 0:01:34]} g6 {[%emt 0:03:06]} 11. Qe2 {[%emt 0:03:05]} Ne5 {[%emt 0:09:22]} 12. g5 {[%emt 0:02:50]} hxg5 {[%emt 0:00:00]} 13. Bxg5 {[%emt 0:00:16]} Bg7 {[%emt 0:00:00]} 14. O-O-O {[%emt 0:00:27]} Bd7 {[%emt 0:00:00]} 15. f4 {[%emt 0:01:03]} Nc6 {[%emt 0:00:00]} 16. e5 {[%emt 0:02:02]} dxe5 {[%emt 0:00:00]} 17. Nxc6 {[%emt 0:00:07]} bxc6 {[%emt 0:00:00]} 18. fxe5 {[%emt 0:01:08]} Nd5 {[%emt 0:00:00]} 19. Bxd5 {[%emt 0:00:38]} cxd5 {[%emt 0:00:23]} 20. Bf6 {[%emt 0:00:39]} Bxf6 {[%emt 0:00:28]} 21. exf6 {[%emt 0:00:06]} Kf8 {[%emt 0:00:39]} 22. Kb1 {[%emt 0:00:38]} Bc6 {[%emt 0:00:12]} 23. Rh3 {[%emt 0:00:22]} a5 {[%emt 0:00:11]} 24. h5 {[%emt 0:00:25]} gxh5 {[%emt 0:00:10]} 25. Rxh5 {[%emt 0:00:08]} Rxh5 {[%emt 0:00:06]} 26. Qxh5 {[%emt 0:01:16]} Ke8 27. Qh7 {[%emt 0:00:00]} Rd8 {[%emt 0:00:22]} 28. Qg8+ {[%emt 0:00:00]} Kd7 {[%emt 0:00:06]} 29. Qxf7+ {[%emt 0:00:00]} Kc8 {[%emt 0:00:05]} 30. Qxe6+ {[%emt 0:00:00]} Kb8 {[%emt 0:00:11]} 31. Qe7 {[%emt 0:00:14]} Qxe7 {[%emt 0:00:18]} 32. fxe7 {[%emt 0:00:06]} Re8 {[%emt 0:00:06]} 33. Nxd5 {[%emt 0:00:13]} Bxd5 {[%emt 0:00:12]} 34. Rxd5 {[%emt 0:00:07]} Rxe7 {[%emt 0:00:06]} 35. Rxa5 {[%emt 0:00:06]} 1-0

[Event "Queen Rapid Challenge 2024"]
[Site "Bucharest"]
[Date "2024.03.10"]
[Round "5.8"]
[White "Cosma, Elena-Luminita"]
[Black "Patru, Alexandra-Ioana"]
[Result "1-0"]
[ECO "D77"]
[WhiteElo "2238"]
[BlackElo "1838"]
[Annotator "RC"]
[PlyCount "63"]
[EventDate "2024.03.09"]
[EventType "rapid"]
[EventCountry "ROU"]
[SourceTitle "playchess.com"]
[Source "ChessBase"]
[SourceQuality "1"]
[TimeControl "900+10"]

1. d4 {[%emt 0:00:13]} Nf6 {[%emt 0:00:12]} 2. Nf3 {[%emt 0:00:06]} d5 {[%emt 0:00:10]} 3. g3 {[%emt 0:00:11]} g6 {[%emt 0:00:07]} 4. Bg2 {[%emt 0:00:07]} Bg7 {[%emt 0:00:08]} 5. O-O {[%emt 0:00:07]} O-O {[%emt 0:00:08]} 6. c4 {[%emt 0:00:06]} e6 {[%emt 0:00:13]} 7. b3 {[%emt 0:00:49]} b6 {[%emt 0:00:14]} 8. Nc3 {[%emt 0:00:53]} Bb7 {[%emt 0:00:07]} 9. Ba3 {[%emt 0:00:12]} Re8 {[%emt 0:00:18]} 10. Rc1 {[%emt 0:00:15]} Nbd7 {[%emt 0:01:00]} 11. Ne5 {[%emt 0:01:01]} Nxe5 {[%emt 0:01:01]} 12. dxe5 {[%emt 0:00:07]} Ng4 {[%emt 0:00:08]} 13. cxd5 {[%emt 0:13:13]} exd5 {[%emt 0:01:46]} 14. Nxd5 {[%emt 0:00:00]} Bxd5 {[%emt 0:04:43]} 15. Bxd5 {[%emt 0:00:00]} Rb8 {[%emt 0:00:07]} 16. h3 {[%emt 0:00:00]} Nxe5 {[%emt 0:00:56]} 17. f4 {[%emt 0:00:00]} Nd7 {[%emt 0:00:23]} 18. Bc6 {[%emt 0:00:00]} Nf6 {[%emt 0:01:26]} 19. Bxe8 {[%emt 0:00:00]} Qxe8 {[%emt 0:00:08]} 20. Rxc7 {[%emt 0:00:00]} Qe3+ {[%emt 0:00:59]} 21. Kh2 {[%emt 0:00:00]} Re8 {[%emt 0:00:39]} 22. Rc2 {[%emt 0:00:00]} Nh5 {[%emt 0:01:19]} 23. Rf3 {[%emt 0:00:00]} Qe4 {[%emt 0:00:15]} 24. Qd3 {[%emt 0:00:00]} Qb7 {[%emt 0:00:56]} 25. Re3 {[%emt 0:00:00]} Rxe3 {[%emt 0:00:52]} 26. Qxe3 {[%emt 0:00:00]} Nf6 {[%emt 0:00:07]} 27. Qe7 {[%emt 0:00:00]} Qxe7 {[%emt 0:00:58]} 28. Bxe7 {[%emt 0:00:00]} h6 {[%emt 0:00:12]} 29. Rc8+ {[%emt 0:00:00]} Kh7 {[%emt 0:00:07]} 30. Bxf6 {[%emt 0:00:00]} Bxf6 {[%emt 0:00:07]} 31. Rc7 {[%emt 0:00:00]} Kg7 {[%emt 0:00:07]} 32. Rxa7 {[%emt 0:00:00]} 1-0

[Event "Queen Rapid Challenge 2024"]
[Site "Bucharest"]
[Date "2024.03.10"]
[Round "5.9"]
[White "Didiliuc, Dariana-Gabriela"]
[Black "Sandu, Mihaela"]
[Result "0-1"]
[ECO "E39"]
[WhiteElo "1917"]
[BlackElo "2270"]
[Annotator "RC"]
[PlyCount "40"]
[EventDate "2024.03.09"]
[EventType "rapid"]
[EventCountry "ROU"]
[SourceTitle "playchess.com"]
[Source "ChessBase"]
[SourceQuality "1"]
[TimeControl "900+10"]

1. d4 {[%emt 0:00:11]} Nf6 {[%emt 0:00:11]} 2. c4 {[%emt 0:00:08]} e6 {[%emt 0:00:06]} 3. Nc3 {[%emt 0:00:09]} Bb4 {[%emt 0:00:07]} 4. Qc2 {[%emt 0:00:09]} c5 {[%emt 0:00:07]} 5. dxc5 {[%emt 0:00:09]} Nc6 {[%emt 0:00:11]} 6. Nf3 {[%emt 0:00:20]} O-O {[%emt 0:00:17]} 7. a3 {[%emt 0:00:57]} Bxc5 {[%emt 0:00:09]} 8. b4 {[%emt 0:01:06]} Nd4 {[%emt 0:00:35]} 9. Qd3 {[%emt 0:01:23]} Nxf3+ {[%emt 0:01:42]} 10. Qxf3 {[%emt 0:00:08]} Be7 {[%emt 0:00:58]} 11. Bf4 {[%emt 0:01:15]} a5 {[%emt 0:01:08]} 12. b5 {[%emt 0:02:39]} d5 {[%emt 0:00:12]} 13. e3 {[%emt 0:01:44]} a4 {[%emt 0:00:33]} 14. Bd3 {[%emt 0:02:15]} Qa5 {[%emt 0:00:10]} 15. Be5 {[%emt 0:02:03]} Nd7 {[%emt 0:01:55]} 16. Qh3 {[%emt 0:01:21]} g6 {[%emt 0:00:16]} 17. Bd4 {[%emt 0:01:33]} e5 {[%emt 0:00:16]} 18. O-O {[%emt 0:00:11]} Nf6 {[%emt 0:00:48]} 19. Qg3 {[%emt 0:00:27]} exd4 {[%emt 0:00:08]} 20. exd4 {[%emt 0:00:06]} Qxc3 {[%emt 0:00:00]} 0-1

[Event "Queen Rapid Challenge 2024"]
[Site "Bucharest"]
[Date "2024.03.10"]
[Round "5.10"]
[White "Dobre, Ana-Margareta-Alexan"]
[Black "Petculescu, Diana-Silvana"]
[Result "1-0"]
[ECO "B23"]
[WhiteElo "1914"]
[BlackElo "1734"]
[Annotator "RC"]
[PlyCount "133"]
[EventDate "2024.03.09"]
[EventType "rapid"]
[EventCountry "ROU"]
[SourceTitle "playchess.com"]
[Source "ChessBase"]
[SourceQuality "1"]
[TimeControl "900+10"]

1. e4 {[%emt 0:00:13]} c5 {[%emt 0:00:11]} 2. Nc3 {[%emt 0:00:06]} Nc6 {[%emt 0:00:11]} 3. Bb5 {[%emt 0:00:11]} Nd4 {[%emt 0:00:07]} 4. Nf3 {[%emt 0:00:06]} a6 {[%emt 0:01:23]} 5. Bc4 {[%emt 0:03:06]} Nxf3+ {[%emt 0:03:21]} 6. Qxf3 {[%emt 0:00:09]} e6 {[%emt 0:00:10]} 7. a4 {[%emt 0:00:21]} d6 {[%emt 0:00:48]} 8. O-O {[%emt 0:00:23]} Be7 {[%emt 0:00:15]} 9. Qg3 {[%emt 0:00:21]} Bf6 {[%emt 0:01:06]} 10. d3 {[%emt 0:01:13]} Be5 {[%emt 0:02:14]} 11. f4 {[%emt 0:00:18]} Bd4+ {[%emt 0:00:07]} 12. Be3 {[%emt 0:00:07]} Bxe3+ {[%emt 0:01:00]} 13. Qxe3 {[%emt 0:00:06]} Nf6 {[%emt 0:00:08]} 14. Kh1 {[%emt 0:04:03]} O-O {[%emt 0:00:58]} 15. e5 {[%emt 0:00:47]} dxe5 {[%emt 0:01:17]} 16. fxe5 {[%emt 0:00:07]} Nd7 {[%emt 0:00:09]} 17. Rae1 {[%emt 0:00:23]} b6 {[%emt 0:00:30]} 18. Qg3 {[%emt 0:01:44]} Bb7 {[%emt 0:00:46]} 19. Rf4 {[%emt 0:01:26]} Qc7 {[%emt 0:01:44]} 20. d4 {[%emt 0:00:35]} cxd4 {[%emt 0:00:32]} 21. Rxd4 {[%emt 0:00:06]} Nc5 {[%emt 0:00:36]} 22. b4 {[%emt 0:01:10]} Nd7 {[%emt 0:00:20]} 23. Bd3 {[%emt 0:01:59]} Qc6 {[%emt 0:00:24]} 24. Rh4 {[%emt 0:00:00]} g6 {[%emt 0:00:29]} 25. Be4 {[%emt 0:00:00]} Qc7 {[%emt 0:00:09]} 26. Bxb7 {[%emt 0:00:00]} Qxb7 {[%emt 0:00:06]} 27. Ne4 {[%emt 0:00:00]} h5 {[%emt 0:00:22]} 28. Rxh5 {[%emt 0:00:00]} Kg7 {[%emt 0:00:06]} 29. Nf6 {[%emt 0:00:40]} Nxf6 {[%emt 0:00:07]} 30. exf6+ {[%emt 0:00:06]} Kxf6 {[%emt 0:00:07]} 31. Qf4+ {[%emt 0:00:16]} Ke7 {[%emt 0:00:15]} 32. Qg5+ {[%emt 0:00:11]} Ke8 {[%emt 0:00:14]} 33. Rh3 {[%emt 0:00:07]} Qe7 {[%emt 0:00:11]} 34. Qf4 {[%emt 0:00:09]} Rd8 {[%emt 0:00:15]} 35. Qe4 {[%emt 0:00:13]} Rd7 {[%emt 0:00:12]} 36. Rc3 {[%emt 0:00:09]} Rd8 {[%emt 0:00:10]} 37. Qc6+ {[%emt 0:00:09]} Qd7 {[%emt 0:00:06]} 38. Qxb6 {[%emt 0:00:09]} Qd2 {[%emt 0:00:10]} 39. Qc6+ {[%emt 0:00:07]} Ke7 {[%emt 0:00:12]} 40. Qc5+ {[%emt 0:00:07]} Rd6 {[%emt 0:00:10]} 41. Rf1 {[%emt 0:00:08]} Rfd8 {[%emt 0:00:08]} 42. Qc7+ {[%emt 0:00:19]} R8d7 {[%emt 0:00:08]} 43. Qc8 {[%emt 0:00:07]} Rd8 {[%emt 0:00:13]} 44. Qc5 {[%emt 0:00:07]} R8d7 {[%emt 0:00:11]} 45. Rcf3 {[%emt 0:00:07]} f5 {[%emt 0:00:08]} 46. h3 {[%emt 0:00:17]} Qd4 {[%emt 0:00:11]} 47. Qc8 {[%emt 0:00:09]} Qxb4 {[%emt 0:00:09]} 48. Qh8 {[%emt 0:00:10]} e5 {[%emt 0:00:13]} 49. Qg7+ {[%emt 0:00:06]} Kd8 {[%emt 0:00:06]} 50. Qg8+ {[%emt 0:00:11]} Kc7 {[%emt 0:00:06]} 51. Rb3 {[%emt 0:00:06]} Qxa4 {[%emt 0:00:12]} 52. Qb8+ {[%emt 0:00:07]} Kc6 {[%emt 0:00:09]} 53. Qb6+ {[%emt 0:00:10]} Kd5 {[%emt 0:00:07]} 54. Rd1+ {[%emt 0:00:34]} Ke6 {[%emt 0:00:07]} 55. Rxd6+ {[%emt 0:00:07]} Rxd6 {[%emt 0:00:06]} 56. Qc5 {[%emt 0:00:08]} Qa1+ {[%emt 0:00:10]} 57. Kh2 {[%emt 0:00:06]} Qc1 {[%emt 0:00:10]} 58. Qc8+ {[%emt 0:00:06]} Kf6 {[%emt 0:00:22]} 59. Qf8+ {[%emt 0:00:07]} Ke6 {[%emt 0:00:06]} 60. Qg8+ {[%emt 0:00:08]} Kf6 {[%emt 0:00:08]} 61. Qf8+ {[%emt 0:00:15]} Ke6 {[%emt 0:00:06]} 62. Qc8+ {[%emt 0:00:11]} Kf6 {[%emt 0:00:07]} 63. Qc7 {[%emt 0:00:21]} Qf4+ {[%emt 0:00:13]} 64. Rg3 {[%emt 0:00:14]} Re6 {[%emt 0:00:19]} 65. Qd8+ {[%emt 0:00:06]} Re7 {[%emt 0:00:07]} 66. Qd6+ {[%emt 0:00:07]} Re6 {[%emt 0:00:06]} 67. Qf8# {[%emt 0:00:23]} 1-0